Cogmind - Beta 13 @@@ ROGUE MODE // 2024.04.02 @ 11:54:45 Player: Derauth Result: Core destroyed Performance ------------- Evolutions (1) 500 Regions Visited (5) 1000 Robots Destroyed (46) 230 Value Destroyed (1293) 1293 Prototype IDs (7) 140 Alien Tech Used (0) 0 Bonus (348) 348 TOTAL SCORE: 3511 Bonus ------- High Alert Combat Kills 66 Follower Combat Kills 82 Entered Garrisons 200 Cogmind --------- Core Integrity 0/400 Matter 218/300 Energy 258/280 System Corruption 0% Temperature Critical (532) Movement Walking (190) Ox1 Location -9/Garrison Parts ------- > --- POWER (2) -------- Heavy Ion Engine > --- PROPULSION (2) --- Aluminum Leg > --- UTILITY (2) ------ (None) > --- WEAPON (3) ------- Advanced Beam Cannon Advanced Beam Cannon Compact Ion Cannon > --- INVENTORY (5) ---- Large Battery (200) Advanced Beam Cannon Peak State ------------ > --- POWER ------------ Improved Ion Engine Heavy Ion Engine > --- PROPULSION ------- Aluminum Leg Carbon-fiber Leg > --- UTILITY ---------- Drone Bay Drone Bay > --- WEAPON ----------- Advanced Beam Cannon Advanced Beam Cannon Compact Ion Cannon > --- INVENTORY -------- Large Battery Drone Bay Drone Bay Improved Medium Laser Advanced Beam Cannon [Rating: 32] Favorites ----------- Power Heavy Ion Engine Engine Heavy Ion Engine Power Core Light Nuclear Core Propulsion Aluminum Leg Leg Aluminum Leg Wheel Wheel Utility Drone Bay Device Drone Bay Storage Compact Matter Pod Processor Signal Interpreter Hackware Hacking Suite Protection Heavy Armor Plating Weapon Advanced Beam Cannon Energy Gun Improved Medium Laser Energy Cannon Advanced Beam Cannon Ballistic Gun Improved Assault Rifle Ballistic Cannon Improved Light Cannon Launcher Rocket Launcher Build | -11 -10 -10 -9 -9 -9 ------- Run | Yrd Mat Min Mat Sto Gar Slots Evolved 2 | . . . 2 . . Power 1 | . . . 1 . . Propulsion . | . . . . . . Utility . | . . . . . . Weapon 1 | . . . 1 . . Parts Attached 60 | 5 5 2 5 36 7 Power 9 | 1 . . 1 6 1 Engine 8 | 1 . . 1 6 . Core 1 | . . . . . 1 Reactor . | . . . . . . Propulsion 6 | 2 . . . 3 1 Treads . | . . . . . . Leg 4 | . . . . 3 1 Wheel 2 | 2 . . . . . Hover . | . . . . . . Flight . | . . . . . . Utility 18 | . 3 2 . 11 2 Device 10 | . 2 . . 8 . Storage 4 | . . 2 . 2 . Processor 1 | . 1 . . . . Hackware 1 | . . . . 1 . Protection 2 | . . . . . 2 Artifact . | . . . . . . Weapon 27 | 2 2 . 4 16 3 Energy Gun 6 | 2 . . . 3 1 Energy Cannon 11 | . . . 2 7 2 Ballistic Gun 2 | . . . . 2 . Ballistic Cannon 7 | . 2 . 2 3 . Launcher 1 | . . . . 1 . Special Weapon . | . . . . . . Impact Weapon . | . . . . . . Slashing Weapon . | . . . . . . Piercing Weapon . | . . . . . . Special Melee Weapon . | . . . . . . Unidentified Prototypes 7 | . . . 1 6 . Parts Lost 6 | . . . . 3 3 Power 4 | . . . . 3 1 Propulsion 1 | . . . . . 1 Utility 1 | . . . . . 1 Weapon . | . . . . . . Highest Loss Streak 3 | . . . . 2 3 To Critical Strikes . | . . . . . . Average Slot Usage (%) 95 | . 93 100 91 96 88 Engine 18 | . 14 14 14 19 18 Leg 15 | . . . . 20 19 Wheel 6 | . 28 28 22 1 . Device 13 | . 15 . . 18 6 Storage 4 | . . 14 11 2 . Processor 2 | . 5 14 11 . . Energy Gun 4 | . 2 . . 5 1 Energy Cannon 16 | . . . 3 19 31 Ballistic Cannon 9 | . 25 28 29 5 . Launcher 1 | . . . . 1 . Naked Turns . | . . . . . . Heaviest Build 42 | 6 13 13 21 39 42 Greatest Support 25 | 20 20 20 20 25 25 Greatest Overweight (x) 4 | . . . 1 2 4 Average Overweight (x) . | . . . . 1 1 Largest Inventory Capacity 5 | 5 5 5 5 5 5 Average Capacity 5 | 5 5 5 5 5 5 Most Carried 5 | 3 4 5 5 5 5 Average Carried 4 | . 2 3 3 4 3 Final Capacity 5 | 5 5 5 5 5 5 Final Carried 5 | . 4 3 5 5 2 Class Distribution -------------------- 62% | Gunner 22% | Mutant 9% | Scavenger-Gunner 6% | Tank Dominant Class ---------------- Mutant | -10/Materials Mutant | -10/Mines Gunner | -9/Materials Gunner | -9/Storage Tank | -9/Garrison Resources | -11 -10 -10 -9 -9 -9 ----------- Run | Yrd Mat Min Mat Sto Gar Matter Collected 1583 | 182 75 277 166 764 119 Remotely 9 | . 9 . . . . Salvage Created 1466 | . 50 . 124 1014 278 Parts 98 | . 5 . 6 77 10 Haulers Intercepted 3 | . . . . 3 . Recyclers Shooed . | . . . . . . Parts Field Recycled 2 | . . . . 2 . Retrieved Matter . | . . . . . . Parts Self-Destructed . | . . . . . . Prevented . | . . . . . . Kills | -11 -10 -10 -9 -9 -9 ------- Run | Yrd Mat Min Mat Sto Gar Combat Hostiles Destroyed 36 | . 4 . 4 22 6 Guns 2 | . . . . 1 1 Cannons 33 | . 4 . 4 20 5 Classes Destroyed 8 | . 2 . 1 5 . Worker 1 | . . . . 1 . Hauler 3 | . . . . 3 . Recycler 2 | . . . . 2 . Operator 1 | . . . . 1 . Watcher 3 | . . . . 2 1 Swarmer 10 | . 3 . . 7 . Grunt 16 | . 1 . 3 6 6 Sentry 10 | . . . 1 9 . Best Kill Streak 10 | . 4 . 3 10 3 Combat Bots Only 7 | . 4 . 3 7 3 Max Kills in Single Turn 2 | . 1 . 1 2 1 Gunslinging . | . . . . . . Exploded . | . . . . . . Melee . | . . . . . . Uniques/NPCs Destroyed . | . . . . . . Combat | -11 -10 -10 -9 -9 -9 -------- Run | Yrd Mat Min Mat Sto Gar Hostile Shots Fired 149 | . 12 . 5 81 51 Missed 28 | . 5 . 2 14 7 Damage Taken 1731 | . 51 2 33 868 777 Core 410 | . 7 . . 124 279 Absorbed by Shields . | . . . . . . Core Remaining (%) 98 | 100 . 97 . . . Volleys Fired 132 | . 8 . 10 90 24 Largest 3 | . 2 . 3 3 3 Hottest 226 | . 78 . 146 226 226 Shots Fired 287 | . 16 . 30 204 37 Gun 28 | . . . . 25 3 Cannon 245 | . 16 . 30 165 34 Launcher 14 | . . . . 14 . Special . | . . . . . . Kinetic 131 | . 16 . 29 86 . Thermal 136 | . . . 1 98 37 Explosive 14 | . . . . 14 . Electromagnetic 6 | . . . . 6 . Robot Hit Streak 10 | . 3 . 8 10 6 Robot Miss Streak 7 | . 4 . 3 7 3 Penetration Max . | . . . . . . Secondary Targets . | . . . . . . Shots Hit Robots 118 | . 6 . 13 81 18 Core Hits 51 | . 4 1 4 33 9 Critical Kills 1 | . . . . 1 . Critical Parts Destroyed . | . . . . . . Critical Strikes 2 | . . . . 2 . Meltdown 1 | . . . . 1 . Blast 1 | . . . . 1 . Melee Attacks . | . . . . . . Impact . | . . . . . . Slashing . | . . . . . . Piercing . | . . . . . . Sneak Attacks . | . . . . . . Combat Hostiles . | . . . . . . Follow-up Attacks . | . . . . . . Damage Inflicted 2619 | . 201 5 276 1699 438 Guns 219 | . . . . 185 34 Cannons 2360 | . 201 . 276 1479 404 Explosions . | . . . . . . Melee . | . . . . . . Ramming 40 | . . 5 . 35 . Kinetic 1265 | . 201 . 255 809 . Thermal 1212 | . . . 21 753 438 Explosive . | . . . . . . Electromagnetic 102 | . . . . 102 . Impact . | . . . . . . Slashing . | . . . . . . Piercing . | . . . . . . Highest Corruption . | . . . . . . Average Corruption . | . . . . . . Corruption Purged . | . . . . . . Corruption Blocked . | . . . . . . Overload Shots . | . . . . . . Overflow Damage 7 | . 5 . . 2 . Projectiles 7 | . 5 . . 2 . Explosions . | . . . . . . Melee . | . . . . . . Knockbacks 12 | . 6 . 1 5 . Impact . | . . . . . . Kinetic 11 | . 5 . 1 5 . Secondary 1 | . 1 . . . . Self-Inflicted Damage 40 | . . 2 . 38 . Shots 2 | . . . . 2 . Rammed 2 | . . 2 . . . Targets Rammed 11 | . . 2 . 9 . Kicked 9 | . . . . 9 . Crushed . | . . . . . . Highest Temperature 969 | . 72 . 260 543 969 Average Temperature 215 | . 30 . 97 172 402 Received Heat Transfer 543 | . . . 18 216 309 Effects 77 | . . . . 22 55 Shutdowns 27 | . . . . 10 17 Energy Bleed 6 | . . . . 2 4 Interference 6 | . . . . 2 4 Matter Decay 4 | . . . . . 4 Short Circuit 6 | . . . . 4 2 Damage (minor) 6 | . . . . 1 5 Damage (major) 18 | . . . . 3 15 Damage (core) 4 | . . . . . 4 Siege Activations . | . . . . . . Robots Corrupted . | . . . . . . Combat Hostiles . | . . . . . . Parts Fried . | . . . . . . Impact Corruptions . | . . . . . . Robots Melted 1 | . . . . 1 . Combat Hostiles 1 | . . . . 1 . Parts Melted 2 | . . . . 2 . Heat Transferred 2146 | . . . 37 1369 740 Parts Sabotaged . | . . . . . . Parts Stolen . | . . . . . . Parts Stripped . | . . . . . . Power Chain Reactions . | . . . . . . Alert | -11 -10 -10 -9 -9 -9 ------- Run | Yrd Mat Min Mat Sto Gar Peak Influence 499 | . 110 42 190 499 408 Initial 273 | . . 42 . 79 273 Average 286 | . 25 30 113 368 319 Maximum Alert Level 2 | . . . . 2 2 Low Security (%) 25 | 100 100 100 100 3 . Level 1 59 | . . . . 74 96 Level 2 15 | . . . . 22 3 Level 3 . | . . . . . . Level 4 . | . . . . . . Level 5 . | . . . . . . High Security . | . . . . . . Max Security . | . . . . . . Squads Dispatched 7 | . 2 . 1 4 . Investigation 2 | . 1 . . 1 . Extermination . | . . . . . . Reinforcement 4 | . 1 . 1 2 . Assault . | . . . . . . Garrison 1 | . . . . 1 . Intercept . | . . . . . . Searches Triggered . | . . . . . . Construction Impeded . | . . . . . . Haulers Reinforced . | . . . . . . Active Scanning Responses . | . . . . . . Cargo Convoy Interrupts . | . . . . . . Stealth | -11 -10 -10 -9 -9 -9 --------- Run | Yrd Mat Min Mat Sto Gar Distress Signals . | . . . . . . Communications Jammed . | . . . . . . Distress Signals . | . . . . . . Times Spotted 49 | . 4 . 6 26 13 Peak Tracking Total 7 | . 3 . 3 7 5 Tactical Retreats 5 | . . . . 2 3 Traps | -11 -10 -10 -9 -9 -9 ------- Run | Yrd Mat Min Mat Sto Gar Traps Triggered 3 | . . . . 2 1 Indirectly . | . . . . . . Trap Hack Attempts . | . . . . . . Triggered . | . . . . . . Disarmed . | . . . . . . Reprogrammed . | . . . . . . Reused . | . . . . . . Traps Extracted . | . . . . . . Installed . | . . . . . . Triggered . | . . . . . . Machines | -11 -10 -10 -9 -9 -9 ---------- Run | Yrd Mat Min Mat Sto Gar Machines Disabled 10 | . 1 . . 9 . Max in Single Turn 1 | . 1 . . 1 . Machines Repaired . | . . . . . . Machines Dismantled . | . . . . . . Machines Sabotaged . | . . . . . . Overloaded Fab Kills . | . . . . . . Hacking | -11 -10 -10 -9 -9 -9 --------- Run | Yrd Mat Min Mat Sto Gar Machines Accessed 9 | . 1 . . 8 . Terminals 6 | . 1 . . 5 . Fabricators . | . . . . . . Repair Stations 1 | . . . . 1 . Recycling Units 1 | . . . . 1 . Scanalyzers . | . . . . . . Garrison Access 1 | . . . . 1 . Total Hacks 26 | . 5 . . 21 . Successful 14 | . 3 . . 11 . Failed 12 | . 2 . . 10 . Catastrophic 1 | . . . . 1 . Database Lockouts . | . . . . . . Manual 1 | . . . . 1 . Terminals 17 | . 5 . . 12 . Fabricators . | . . . . . . Repair Stations 4 | . . . . 4 . Recycling Units 3 | . . . . 3 . Scanalyzers . | . . . . . . Garrison Access 2 | . . . . 2 . Terminal Hacks 8 | . 3 . . 5 . Record 1 | . . . . 1 . Open Door 3 | . . . . 3 . Emergency Access Points 1 | . 1 . . . . Alert Level 1 | . 1 . . . . Hauler Manifests 1 | . . . . 1 . Zone Layout 1 | . 1 . . . . Fabricator Hacks . | . . . . . . Repair Station Hacks 2 | . . . . 2 . Scan Component 1 | . . . . 1 . Repair 1 | . . . . 1 . Recycling Unit Hacks 2 | . . . . 2 . Report Inventory 1 | . . . . 1 . Retrieve Components 1 | . . . . 1 . Scanalyzer . | . . . . . . Garrison Access Hacks 2 | . . . . 2 . Unlock Access 1 | . . . . 1 . Coupler Status 1 | . . . . 1 . Unauthorized Hacks . | . . . . . . Terminals . | . . . . . . Fabricators . | . . . . . . Repair Stations . | . . . . . . Recycling Units . | . . . . . . Scanalyzers . | . . . . . . Garrison Access . | . . . . . . Data Cores Recovered . | . . . . . . Used . | . . . . . . Hacking Detections 6 | . 1 . . 5 . Full Trace Events 4 | . 1 . . 3 . Feedback Events . | . . . . . . Feedback Blocked . | . . . . . . Robot Schematics Acquired . | . . . . . . Robots Built . | . . . . . . Authchips . | . . . . . . Time . | . . . . . . Total Robot Build Rating . | . . . . . . Part Schematics Acquired . | . . . . . . Parts Built . | . . . . . . Authchips . | . . . . . . Time . | . . . . . . Total Part Build Rating . | . . . . . . Parts Repaired 1 | . . . . 1 . Time 64 | . . . . 64 . Parts Recycled . | . . . . . . Recycled Matter . | . . . . . . Retrieved Matter . | . . . . . . Retrieved Components 10 | . . . . 10 . Parts Scanalyzed . | . . . . . . Part Schematics Acquired . | . . . . . . Parts Damaged . | . . . . . . Bothacking | -11 -10 -10 -9 -9 -9 ------------ Run | Yrd Mat Min Mat Sto Gar Used RIF Installer . | . . . . . . Robots Hacked . | . . . . . . Non-combat . | . . . . . . Combat . | . . . . . . Robot Hacks Applied . | . . . . . . Relay Couplers Released . | . . . . . . Fabnet Peak Effective % . | . . . . . . Robots Rewired . | . . . . . . Allies Hacked . | . . . . . . Hacks Repelled . | . . . . . . Allies | -11 -10 -10 -9 -9 -9 -------- Run | Yrd Mat Min Mat Sto Gar Total Allies 2 | . . 2 . . . Largest Group 2 | . . 2 2 1 . Highest-Rated Group 42 | . . 42 42 31 . Highest-Rated Ally 31 | . . 31 31 31 . Total Orders 1 | . . . . 1 . EXPLORE 1 | . . . . 1 . Ally Attacks 18 | . . . 12 6 . Total Damage 272 | . . . 146 126 . Kills 4 | . . . 2 2 . Allies Corrupted . | . . . . . . Allies Melted . | . . . . . . Intel | -11 -10 -10 -9 -9 -9 ------- Run | Yrd Mat Min Mat Sto Gar Robot Analysis Total . | . . . . . . Derelict Logs Recovered 3 | . . 3 . . . Drone Launches 14 | . . . . 10 4 Drone Recoveries 9 | . . . . 9 . Exploration | -11 -10 -10 -9 -9 -9 ------------- Run | Yrd Mat Min Mat Sto Gar Turns Passed 3627 | 36 164 556 94 2426 351 Spaces Moved 2119 | 33 153 686 59 1076 112 Core 4 | 4 . . . . . Treads . | . . . . . . Legs 1123 | . . . . 1011 112 Wheels 992 | 29 153 686 59 65 . Hover . | . . . . . . Flight . | . . . . . . Fastest Speed 50 | 50 80 80 80 95 190 Average Speed 141 | 76 80 80 83 186 215 Slowest Speed 400 | 80 80 80 95 260 400 Overloaded Moves . | . . . . . . Propulsion Burnouts . | . . . . . . Robots Hopped . | . . . . . . Cave-ins Triggered . | . . . . . . Exploration Rate (%) 38 | 4 23 98 10 82 13 Regions Visited 5 Branch Regions 2 Pre-discovered Areas 2 | . . 2 . . . Known Exits Taken 4 | . 1 1 1 1 . Unknown Exits Taken 1 | 1 . . . . . Scrap Searched 1 | . . 1 . . . Spaces Dug 45 | . . . . 45 . Terrain Destroyed 109 | . . . 1 108 . Melee . | . . . . . . Projectile 13 | . . . 1 12 . AOE 96 | . . . . 96 . Terrain Rammed . | . . . . . . Walls Destroyed . | . . . . . . Machines Disabled . | . . . . . . Actions | -11 -10 -10 -9 -9 -9 --------- Run | Yrd Mat Min Mat Sto Gar Total 2498 | 44 177 692 80 1310 195 Wait 84 | . 2 . . 51 31 Move 2115 | 32 152 685 58 1076 112 Hop . | . . . . . . Pick Up 49 | 6 8 1 5 23 6 Fast Attach 6 | . . . 1 5 . Attach 16 | 5 2 . 2 3 4 Detach . | . . . . . . Swap 38 | . 3 2 2 28 3 Drop 42 | 1 2 2 2 25 10 Fire 132 | . 8 . 10 90 24 Melee . | . . . . . . Ram 2 | . . 2 . . . Kick 9 | . . . . 9 . Crush . | . . . . . . Escape Stasis 5 | . . . . . 5 Rewire . | . . . . . . Trap . | . . . . . . Miscellaneous . | . . . . . . Route ------- -11/Scrapyard -10/Materials -10/Mines (discovered 2 exits: *Mat x2) -9/Materials (discovered 2 exits: *Sto x2) -9/Storage -9/Garrison History --------- Turn | Location | Event 9 | -11/Scrapyard | Discovered new exit (range 15) 37 | -11/Scrapyard | Entered Materials 144 | -10/Materials | Discovered new exit (range 11) 169 | -10/Materials | Identified exit to Mines 201 | -10/Materials | Entered Mines 215 | -10/Mines | Learned location of 1 exit from Materials 216 | -10/Mines | Learned location of Mines (-9) 317 | -10/Mines | Build established: Mutant 480 | -10/Mines | Learned location of Storage (-9) 674 | -10/Mines | Discovered new exit (range 6) 677 | -10/Mines | Identified exit to Materials 683 | -10/Mines | Discovered exit to Materials (range 11) 757 | -10/Mines | Entered Materials 757 | -9/Materials | Accompanied by 2 allies 757 | -9/Materials | Evolved 2 slots: Power x1, Weapon x1 758 | -9/Materials | Identified exit to Storage 762 | -9/Materials | Led the pair of lost Derelicts to an unsafe place 840 | -9/Materials | Discovered exit to Storage (range 8) 851 | -9/Materials | Entered Storage 851 | -9/Storage | Accompanied by 1 ally 980 | -9/Storage | Destroyed 7 combat bots 1048 | -9/Storage | Build established: Gunner 1048 | -9/Storage | Garrison activated, responded to threat 1393 | -9/Storage | Build established: Scavenger-Gunner 1741 | -9/Storage | Build established: Gunner 2161 | -9/Storage | Repaired Broken Adv. Beam Cannon 3277 | -9/Storage | Identified exit to Garrison 3277 | -9/Storage | Entered Garrison 3426 | -9/Garrison | Core integrity fell below 50% 3433 | -9/Garrison | Core integrity fell below 20% 3482 | -9/Garrison | Lost 4 allies 3629 | -9/Garrison | Core destroyed Last Messages --------------- 03465_ Overheating: Adv. Beam Cannon damaged (-15). 03466_ Overheating: Aluminum Leg damaged (-1). 03468_ Power failure, Hvy. Ion Engine shutdown. 03472_ Power failure, Imp. Ion Engine shutdown. 03509_ Acquired 60 matter. 03521_ Acquired Lgt. Nuclear Core. 03527_ Acquired Aluminum Leg. 03529_ Dropped Imp. Ion Engine. 03533_ Acquired 36 matter. 03580_ Acquired 14 matter. 03582_ Acquired 9 matter. 03594_ G-34 Mercenary destroyed. 03606_ Aluminum Leg destroyed. 03608_ Power failure, Hvy. Ion Engine shutdown. 03619_ Hvy. Armor Plating destroyed. 03622_ G-34 Mercenary destroyed. 03625_ Lgt. Nuclear Core destroyed. 03625_ Critical hit (Burn: +37). 03629_ Overheating: Core damaged (-56). Map ----- +----------------------------------------------------+ | ?????????????????????????????????????????????????? | | ?????????????????????????????????????????????????? | | ?????????????????????????????????????????????????? | | ?????????????????????????????????????????????????? | | ?????????????????????????????????????????????????? | | ?????????????????????????????????????????????????? | | ?????????????????????????????????????????????????? | | ?????????????????????????????????????????????????? | | ?????????????????????????????????????????????????? | | ?????????????????????????????????????????????????? | | ?????????????????????????????????????????????????? | | ?????????????????????????????????????????????????? | | ?????????????????????????????????????????????????? | | ?????????????????????????????????????????????????? | | ?????????????????????????????????????????????????? | | ?????????????## #############??????????????????? | | ?????????? ###############?##?? | | ?????????? *% ## #?? | | ?????????? ########## ######![###[ #= #?? | | ???????????????????????????# #???#!^! ## #?? | | ???????????????????????????# #???#!^^!### #?? | | ???????????????????????????#^^#???#%=!!#?#######?? | | ???????????????????????????# #???#]!!!#?????????? | | ???????????????????????????# #???#] %!#?????????? | | ??????????????????????###### ######[%##?????????? | | ??????????????????????# @ g *%=!%% #??????????? | | ??????????????????????# #### #############??????? | | ??????????????????????# #??# ######### ##?????? | | ??????????????????????# #??# #?????? | | ??????????????????????# #??# #?????? | | ??????????????????????# #??# #?????? | | ??????????????????????# #??############ ##?????? | | ??????????????????????# #?????????????#####??????? | | ??????????????????????# "????????????????????????? | | ??????????????????????# "????????????????????????? | | ??????????????????????# "????????????????????????? | | ??????????????????????? ?????????????????????????? | | ??????????????????????? ?????????????????????????? | | ??????????????????????? ?????????????????????????? | | ??????????????????????? ?????????????????????????? | | ??????????????????????? ?????????????????????????? | | ??????????????????????? ?????????????????????????? | | ??????????????????????? ?????????????????????????? | | ??????????????????????? ?????????????????????????? | | ?????????????????????????????????????????????????? | | ?????????????????????????????????????????????????? | | ?????????????????????????????????????????????????? | | ?????????????????????????????????????????????????? | | ?????????????????????????????????????????????????? | | ?????????????????????????????????????????????????? | +----------------------------------------------------+ Best States ------------- Heat Dissipation 42 Energy Generation 27 Energy Capacity 445 Matter Stores 450 Matter Capacity 450 Sight Range 16 Robot Scan Range 14 Terrain Scan Density 10 Armor Coverage 600 Evasion (%) 55 Offensive Hacking 10 Item Schematics ----------------- None Robot Schematics ------------------ None Fabricated ------------ Nothing Alien Tech Used ----------------- None Achievements -------------- None Challenges ------------ None Game ------ Seed SpectralCommBattery Manual? 0 Play Time 00:38:13 Cumulative 3.9 hours Start 2024.04.02 @ 11:17:42 End 2024.04.02 @ 11:54:45 Sessions 1 Manual Loads 0 Difficulty Rogue Special Mode None Game No. 7 Rogue 7 Adventurer 0 Explorer 0 Win Type - Total 0 Types 0/0/0/0/0/0/0/0/0 Lore% 9 Gallery% 12 Achievement% 10 Wizard Run 0 Options --------- Layout 1 ASCII 0 Keyboard 0 Movement Mouse Keybinds 0 Fullscreen 1 Font 32/Terminus Map View 50x35 Zoom Use 0% Tactical HUD 1 Map Filters NONE Filters NONE Steam 1 RUN: dcf5ee39-2b86-4559-8fa1-0887b5a8f3b4